fUSD/lending_fUSD_20250219
["ID","MTS","AMOUNT","RATE_DAILY","PERIOD"]
[353721037,1739997065198,-703.53,0.00013643,2]
[353721038,1739997065207,-950.83,0.00013643,2]
[353721039,1739997065217,-805.07,0.00013643,2]
[353721040,1739997065228,-101566.25,0.0001367,2]
[353721041,1739997065239,-126719.59,0.0001367,2]
[353721042,1739997065249,-151.0,0.0001367,2]
[353721043,1739997065259,-151.0,0.0001367,2]
[353721044,1739997065270,-151.0,0.0001367,2]
[353721045,1739997065279,-151.0,0.0001367,2]
[353721046,1739997065289,-151.0,0.0001367,2]
[353721047,1739997065299,-151.0,0.0001367,2]
[353721048,1739997065308,-151.0,0.0001367,2]
[353721049,1739997065318,-230.425858,0.0001367,2]
[353721050,1739997065328,-151.0,0.0001367,2]
[353721051,1739997065337,-151.0,0.0001367,2]
[353721052,1739997065347,-254.230638,0.0001367,2]
[353721053,1739997065357,-151.0,0.0001367,2]
[353721054,1739997065367,-151.0,0.0001367,2]
[353721055,1739997065377,-151.0,0.0001367,2]
[353721056,1739997065387,-151.0,0.0001367,2]
[353721057,1739997065398,-151.0,0.0001367,2]
[353721058,1739997065408,-151.0,0.0001367,2]
[353721059,1739997065417,-151.0,0.0001367,2]
[353721060,1739997065427,-151.0,0.0001367,2]
[353721061,1739997065436,-151.0,0.0001367,2]
[353721062,1739997065447,-151.0,0.0001367,2]
[353721063,1739997065457,-151.0,0.0001367,2]
[353721064,1739997065467,-151.0,0.0001367,2]
[353721065,1739997065476,-796.93,0.00013681,2]
[353721066,1739997065486,-2022.8371727,0.0001369,2]
[353721067,1739997065499,-1012.52293924,0.00013697,2]
[353721068,1739997065509,-9997.81071292,0.00013698,4]
[353721069,1739997065519,-500.0,0.00013698,2]
[353721070,1739997065528,-500.0,0.00013698,2]
[353721071,1739997065539,-500.0,0.00013698,2]
[353721072,1739997065548,-500.0,0.00013698,2]
[353721073,1739997065558,-500.0,0.00013698,2]
[353721074,1739997065567,-500.0,0.00013698,2]
[353721075,1739997065579,-500.0,0.00013698,2]
[353721076,1739997065590,-500.0,0.00013698,2]
[353721077,1739997065599,-500.0,0.00013698,2]
[353721078,1739997065608,-500.0,0.00013698,2]
[353721079,1739997065618,-500.0,0.00013698,2]
[353721080,1739997065628,-500.0,0.00013698,2]
[353721081,1739997065637,-500.0,0.00013698,2]
[353721082,1739997065647,-576.37054517,0.00013698,2]
[353721083,1739997065656,-1000.0,0.00013698,2]
[353721084,1739997065667,-1000.0,0.00013698,2]
[353721085,1739997065677,-1000.0,0.00013698,2]
[353721086,1739997065687,-1000.0,0.00013698,2]
[353721087,1739997065696,-1000.0,0.00013698,2]
[353721088,1739997065705,-1000.0,0.00013698,2]
[353721089,1739997065714,-1000.0,0.00013698,2]
[353721090,1739997065724,-1000.0,0.00013698,2]
[353721091,1739997065734,-1000.0,0.00013698,2]
[353721092,1739997065744,-1000.0,0.00013698,2]
[353721093,1739997065753,-1959.65,0.00013698,3]
[353721094,1739997065763,-1019.77,0.00013698,2]
[353721095,1739997065772,-1019.77,0.00013698,2]
[353721096,1739997065782,-1019.77,0.00013698,2]
[353721097,1739997065792,-1019.77,0.00013698,2]
[353721098,1739997065802,-1019.77,0.00013698,2]
[353721099,1739997065811,-1019.77,0.00013698,2]
[353721100,1739997065821,-1019.77,0.00013698,2]
[353721101,1739997065830,-1019.77,0.00013698,2]
[353721102,1739997065840,-1019.77,0.00013698,2]
[353721103,1739997065850,-1019.77,0.00013698,2]
[353721104,1739997065859,-1019.77,0.00013698,2]
[353721105,1739997065868,-1019.77,0.00013698,2]
[353721106,1739997065878,-1019.77,0.00013698,2]
[353721107,1739997065888,-1019.77,0.00013698,2]
[353721108,1739997065898,-1019.77,0.00013698,2]
[353721109,1739997065908,-1019.77,0.00013698,2]
[353721110,1739997065919,-1019.77,0.00013698,2]
[353721111,1739997065931,-1019.77,0.00013698,2]
[353721112,1739997065941,-1019.77,0.00013698,2]
[353721113,1739997065950,-1019.77,0.00013698,2]
[353721114,1739997065960,-1019.77,0.00013698,2]
[353721115,1739997065970,-1019.77,0.00013698,2]
[353721116,1739997065979,-1019.77,0.00013698,2]
[353721117,1739997065989,-1019.99074299,0.00013698,2]
[353721118,1739997065999,-1000.0,0.00013698,2]
[353721119,1739997066010,-1000.0,0.00013698,2]
[353721120,1739997066020,-1000.0,0.00013698,2]
[353721121,1739997066030,-1000.0,0.00013698,2]
[353721122,1739997066040,-1000.0,0.00013698,2]
[353721123,1739997066049,-1000.0,0.00013698,2]
[353721124,1739997066059,-1000.0,0.00013698,2]
[353721125,1739997066068,-1000.0,0.00013698,2]
[353721126,1739997066078,-1000.0,0.00013698,2]
[353721127,1739997066088,-1000.0,0.00013698,2]
[353721128,1739997066097,-380.35034221,0.00013698,2]
[353721129,1739997066107,-500.0,0.00013699,2]
[353721130,1739997066117,-500.0,0.00013699,2]
[353721131,1739997066127,-500.0,0.00013699,2]
[353721132,1739997066138,-500.0,0.00013699,2]
[353721133,1739997066149,-166.1,0.00013699,2]
[353721134,1739997066159,-15346.59,0.00013699,2]
[353721135,1739997066170,-4000.0,0.00013699,2]
[353721136,1739997066180,-6861.15,0.00013699,2]
[353721137,1739997066189,-500.0,0.00013699,2]
[353721138,1739997066198,-163.37,0.00013699,2]
[353721139,1739997066208,-200.0,0.00013699,2]
[353721140,1739997066217,-500.0,0.00013699,2]
[353721141,1739997066227,-500.0,0.00013699,2]
[353721142,1739997066237,-616.97249685,0.00013699,2]
[353721143,1739997066248,-500.5033893,0.00013699,2]
[353721144,1739997066257,-500.0,0.00013699,2]
[353721145,1739997066267,-607.35647722,0.00013699,2]
[353721146,1739997066277,-1774620.65522956,0.000137,3]
[353721147,1739997066467,-252521.2019943,0.000137,3]
[353721148,1739997066480,-200117.78366555,0.000137,3]
[353721149,1739997066495,-502.93739618,0.000137,3]
[353721150,1739997066674,-500.0,0.0001116,2]
[353721151,1739997066684,-500.0,0.0001116,2]
[353721152,1739997066695,-500.0,0.0001116,2]
[353721153,1739997066705,-500.0,0.00011243,2]
[353721154,1739997066714,-248.12912684,0.00011325,2]
[353721155,1739997066726,-251.87087316,0.00011325,2]
[353721156,1739997066736,-568.0,0.00011325,2]
[353721157,1739997066745,-500.0,0.00011407,2]
[353721158,1739997066755,-500.0,0.00011489,2]
[353721159,1739997066764,-500.0,0.00011571,2]
[353721160,1739997066775,-500.0,0.00011653,2]
[353721161,1739997066784,-500.0,0.00011736,2]
[353721162,1739997066794,-500.0,0.00011818,2]
[353721163,1739997066803,-500.0,0.00011999,2]
[353721164,1739997066813,-500.0,0.00011999,2]
[353721165,1739997066823,-500.0,0.00012081,2]
[353721166,1739997066832,-179.92,0.00012575,2]
[353721167,1739997066842,-158031.73357441,0.000137,3]
[353721168,1739997066858,-10115.77170008,0.000137,3]
[353721169,1739997066869,-2484.589832,0.000137,3]
[353721170,1739997066881,-8423.89999999,0.000137,3]
[353721171,1739997066892,-106278.5717803,0.000137,3]
[353721172,1739997066994,-933.21481246,0.000137,3]
[353721173,1739997067060,-500.0,0.0001116,2]
[353721174,1739997067070,-500.0,0.0001116,2]
[353721175,1739997067084,-184.57677042,0.00011243,2]
[353721176,1739997067098,-315.42322958,0.00011243,2]
[353721177,1739997067111,-500.0,0.00011243,2]
[353721178,1739997067121,-500.0,0.00011999,2]
[353721179,1739997067130,-4289.1111548,0.000137,3]
[353721180,1739997067143,-2340.08376934,0.000137,3]
[353721181,1739997067154,-253.37492,0.000137,3]
[353721182,1739997067165,-11502.03014575,0.000137,3]
[353721183,1739997067177,-349.87046341,0.000137,3]
[353721184,1739997067189,-308.52858885,0.000137,3]
[353721185,1739997067201,-2943.71926096,0.000137,3]
[353721186,1739997067212,-28615.77004819,0.000137,3]
[353721187,1739997067223,-378.2,0.000137,3]
[353721188,1739997067236,-3397.17273388,0.000137,3]
[353721189,1739997067248,-2951.52409575,0.000137,3]
[353721190,1739997067259,-3950.78810474,0.000137,3]
[353721191,1739997067271,-46265.06296964,0.000137,3]
[353721192,1739997067281,-726.86051697,0.000137,3]
[353721193,1739997067291,-1639.62103996,0.000137,2]
[353721194,1739997067301,-138666.01445835,0.000137,5]
[353721195,1739997067317,-65863.63637244,0.000137,5]
[353721196,1739997067330,-1777.82219891,0.000137,5]
[353721197,1739997067344,-2664.999995,0.000137,5]
[353721198,1739997067358,-5199.88223325,0.000137,5]
[353721199,1739997067374,-345.38828004,0.000137,5]
[353721200,1739997067388,-263.258183,0.000137,5]
[353721201,1739997067400,-1131.1209526,0.000137,5]
[353721202,1739997067413,-135096.59025959,0.000137,5]
[353721203,1739997067426,-8252.63766523,0.000137,5]
[353721204,1739997067439,-1484.73048015,0.000137,5]
[353721205,1739997086563,1200.0,0.0001041,2]
[353721206,1739997101928,1600.0,0.0001041,2]
[353721207,1739997104521,164.51,8.767e-05,2]
[353721209,1739997125627,500.0,0.0001041,2]
[353721210,1739997263869,155.54,0.00010478,2]
[353721211,1739997339270,500.0,0.0001041,2]
[353721212,1739997352950,416.76,0.00010314,2]
[353721213,1739997464712,747.48,0.000103,2]
[353721219,1739997509842,23900.0,0.00010205,2]
[353721220,1739997542930,250.0,0.00010205,2]
[353721221,1739997608719,1494.69,8.28e-05,2]
[353721222,1739997636069,1300.0,0.0001041,2]
[353721223,1739997731389,2000.0,0.00010125,2]
[353721224,1739997864002,739.33,0.00010143,2]
[353721225,1739997924584,179.67,0.00010081,2]
[353721226,1739997931349,352.71,0.00010162,2]
[353721227,1739998094610,1000.0,0.00010084,2]
[353721229,1739998216181,157.63,8.767e-05,2]
[353721247,1739998231630,-1494.69,0.00010544,2]
[353721249,1739998231640,-150.0,0.00010849,2]
[353721251,1739998231650,-300.0,0.00010878,2]
[353721253,1739998231659,-505.71,0.00010879,2]
[353721255,1739998231669,-495.23,0.00010879,2]
[353721257,1739998231679,-497.64,0.00010879,2]
[353721259,1739998231688,-504.63,0.00010879,2]
[353721261,1739998231698,-497.72,0.00010879,2]
[353721263,1739998231707,-494.03,0.00010879,2]
[353721265,1739998231717,-490.8,0.00010879,2]
[353721266,1739998231726,-505.69,0.00010879,2]
[353721267,1739998231735,-499.8,0.00010879,2]
[353721269,1739998231745,-502.22,0.00010879,2]
[353721271,1739998231755,-508.44,0.00010879,2]
[353721272,1739998231764,-495.77,0.00010879,2]
[353721273,1739998231774,-500.09,0.00010879,2]
[353721274,1739998231783,-492.04,0.00010879,2]
[353721275,1739998231792,-504.62,0.00010879,2]
[353721276,1739998231802,-506.77,0.00010879,2]
[353721277,1739998231812,-494.85,0.00010879,2]
[353721278,1739998231821,-507.06,0.00010879,2]
[353721279,1739998231831,-495.91,0.00010879,2]
[353721280,1739998231839,-502.48,0.00010879,2]
[353721281,1739998231849,-501.46,0.00010879,2]
[353721282,1739998231859,-498.79,0.00010879,2]
[353721283,1739998231871,-492.67,0.00010879,2]
[353721284,1739998231880,-509.22,0.00010879,2]
[353721285,1739998231890,-499.09,0.00010879,2]
[353721286,1739998231898,-494.86,0.00010879,2]
[353721287,1739998231909,-504.64,0.00010879,2]
[353721288,1739998231918,-497.13,0.0001088,2]
[353721289,1739998231929,-495.76,0.0001088,2]
[353721290,1739998231938,-495.28,0.00010881,2]
[353721291,1739998231949,-497.4,0.00010882,2]
[353721292,1739998231960,-504.17,0.00010884,2]
[353721293,1739998231970,-504.09,0.00010887,2]
[353721294,1739998231979,-506.34,0.00010891,2]
[353721295,1739998231989,-491.75,0.00010899,2]
[353721296,1739998231999,-505.9,0.00010912,2]
[353721297,1739998232008,-504.04,0.00010932,2]
[353721298,1739998232017,-505.17,0.00010965,2]
[353721299,1739998232027,-150.0,0.00010973,2]
[353721300,1739998232036,-513.326,0.00010978,2]
[353721301,1739998232046,-266.7769,0.00010978,2]
[353721303,1739998232055,-1944.6488,0.00010979,2]
[353721305,1739998232064,-495.37,0.00010979,2]
[353721307,1739998232074,-500.0,0.00010979,2]
[353721310,1739998232084,-36284.034,0.00010979,2]
[353721311,1739998232093,-550.0,0.00011,2]
[353721314,1739998232103,-150.0,0.00011006,2]
[353721316,1739998232113,-1806.781,0.00011059,2]
[353721317,1739998232123,-479.52,0.00011059,2]
[353721320,1739998232133,-24449.2295,0.0001106,2]
[353721321,1739998232142,-312.0633,0.0001106,2]
[353721324,1739998232151,-5000.0,0.0001106,2]
[353721325,1739998232160,-1000.0,0.0001106,2]
[353721327,1739998232169,-2500.0,0.0001106,2]
[353721330,1739998232179,-500.0,0.00011078,2]
[353721332,1739998232188,-500.0,0.00011078,2]
[353721333,1739998232198,-500.0,0.00011078,2]
[353721335,1739998232208,-500.0,0.00011078,2]
[353721337,1739998232220,-500.0,0.00011078,2]
[353721339,1739998232228,-507.21306044,0.00011078,2]
[353721341,1739998232238,-500.0,0.00011078,2]
[353721342,1739998232247,-500.0,0.00011078,2]
[353721343,1739998232257,-500.0,0.00011078,2]
[353721344,1739998232266,-500.0,0.00011078,2]
[353721345,1739998232276,-500.0,0.00011078,2]
[353721347,1739998232285,-610.29,0.00011078,2]
[353721349,1739998232295,-500.0,0.00011078,2]
[353721351,1739998232304,-500.0,0.00011078,2]
[353721352,1739998232313,-500.0,0.00011078,2]
[353721353,1739998232322,-500.0,0.00011078,2]
[353721354,1739998232331,-500.0,0.00011078,2]
[353721355,1739998232340,-500.0,0.00011078,2]
[353721356,1739998232350,-500.0,0.00011078,2]
[353721357,1739998232359,-500.0,0.00011078,2]
[353721358,1739998232367,-500.0,0.00011078,2]
[353721359,1739998232376,-500.0,0.00011078,2]
[353721360,1739998232386,-500.0,0.00011078,2]
[353721361,1739998232395,-500.0,0.00011078,2]
[353721362,1739998232404,-500.0,0.00011078,2]
[353721363,1739998232413,-549.37,0.00011078,2]
[353721364,1739998232424,-500.0,0.00011078,2]
[353721365,1739998232433,-500.0,0.00011078,2]
[353721366,1739998232442,-500.0,0.00011078,2]
[353721367,1739998232451,-341.24421545,0.00011078,2]
[353721368,1739998232460,-500.0,0.00011078,2]
[353721369,1739998232470,-500.0,0.00011078,2]
[353721370,1739998232479,-500.0,0.00011078,2]
[353721371,1739998232488,-502.4465916,0.00011078,2]
[353721372,1739998232498,-500.0,0.00011078,2]
[353721373,1739998232507,-500.0,0.00011078,2]
[353721374,1739998232516,-500.0,0.00011078,2]
[353721375,1739998232525,-500.0,0.00011078,2]
[353721376,1739998232535,-500.0,0.00011078,2]
[353721377,1739998232544,-500.0,0.00011078,2]
[353721378,1739998232554,-500.0,0.00011078,2]
[353721379,1739998232563,-500.0,0.00011078,2]
[353721380,1739998232573,-500.0,0.00011078,2]
[353721381,1739998232582,-500.0,0.00011078,2]
[353721382,1739998232593,-500.0,0.00011078,2]
[353721383,1739998232602,-500.0,0.00011078,2]
[353721384,1739998232612,-500.0,0.00011078,2]
[353721385,1739998232621,-500.0,0.00011078,2]
[353721386,1739998232631,-500.0,0.00011078,2]
[353721387,1739998232640,-500.0,0.00011078,2]
[353721388,1739998232649,-500.0,0.00011078,2]
[353721389,1739998232658,-500.0,0.00011078,2]
[353721390,1739998232667,-500.0,0.00011078,2]
[353721391,1739998232677,-500.0,0.00011078,2]
[353721392,1739998232687,-500.0,0.00011078,2]
[353721393,1739998232696,-500.0,0.00011078,2]
[353721394,1739998232704,-500.0,0.00011078,2]
[353721395,1739998232714,-500.0,0.00011078,2]
[353721396,1739998232723,-500.0,0.00011078,2]
[353721397,1739998232733,-500.0,0.00011078,2]
[353721398,1739998232742,-500.0,0.00011078,2]
[353721399,1739998232751,-500.0,0.00011078,2]
[353721400,1739998232761,-500.0,0.00011078,2]
[353721401,1739998232771,-500.0,0.00011078,2]
[353721402,1739998232780,-500.0,0.00011078,2]
[353721403,1739998232790,-500.0,0.00011078,2]
[353721404,1739998232799,-500.0,0.00011078,2]
[353721405,1739998232809,-500.0,0.00011078,2]
[353721406,1739998232818,-500.0,0.00011078,2]
[353721407,1739998232827,-500.0,0.00011078,2]
[353721408,1739998232836,-500.0,0.00011078,2]
[353721409,1739998232845,-500.0,0.00011078,2]
[353721410,1739998232854,-500.0,0.00011078,2]
[353721411,1739998232864,-500.0,0.00011078,2]
[353721412,1739998232877,-500.0,0.00011078,2]
[353721413,1739998232886,-500.0,0.00011078,2]
[353721414,1739998232896,-500.0,0.00011078,2]
[353721415,1739998232907,-1239.95,0.00011078,2]
[353721416,1739998232916,-500.0,0.00011078,2]
[353721417,1739998232926,-500.0,0.00011078,2]
[353721418,1739998232935,-500.0,0.00011078,2]
[353721419,1739998232945,-507.33786608,0.00011078,2]
[353721420,1739998232956,-500.0,0.00011078,2]
[353721421,1739998232966,-500.0,0.00011078,2]
[353721422,1739998232975,-500.0,0.00011078,2]
[353721423,1739998232984,-500.0,0.00011078,2]
[353721424,1739998232994,-500.0,0.00011078,2]
[353721425,1739998233003,-500.0,0.00011078,2]
[353721426,1739998233013,-500.0,0.00011078,2]
[353721427,1739998233022,-1000.0,0.00011078,2]
[353721428,1739998233031,-500.0,0.00011078,2]
[353721429,1739998233040,-500.0,0.00011078,2]
[353721430,1739998233049,-500.0,0.00011078,2]
[353721431,1739998233057,-673.38230495,0.00011099,2]
[353721432,1739998233066,-501.47122278,0.00011159,2]
[353721433,1739998233075,-341.67245344,0.00011159,2]
[353721434,1739998233085,-500.0,0.00011159,2]
[353721435,1739998233094,-278.18356383,0.00011159,2]
[353721436,1739998233103,-500.0,0.00011159,2]
[353721437,1739998233113,-209.53516914,0.00011159,2]
[353721438,1739998233123,-647.32,0.00011159,2]
[353721439,1739998233132,-500.0,0.00011159,2]
[353721440,1739998233142,-501.52107919,0.00011159,2]
[353721441,1739998233151,-500.0,0.00011159,2]
[353721442,1739998233161,-500.0,0.00011159,2]
[353721443,1739998233171,-500.0,0.00011159,2]
[353721444,1739998233180,-473.8038456,0.00011159,2]
[353721445,1739998233190,-500.0,0.00011159,2]
[353721446,1739998233200,-500.0,0.00011159,2]
[353721447,1739998233210,-500.0,0.00011159,2]
[353721448,1739998233219,-500.0,0.00011159,2]
[353721449,1739998233228,-500.0,0.00011159,2]
[353721450,1739998233238,-500.0,0.00011159,2]
[353721451,1739998233247,-500.0,0.00011159,2]
[353721452,1739998233257,-500.0,0.00011159,2]
[353721453,1739998233266,-500.0,0.00011159,2]
[353721454,1739998233276,-500.0,0.00011159,2]
[353721455,1739998233285,-500.0,0.00011159,2]
[353721456,1739998233295,-500.0,0.00011159,2]
[353721457,1739998233305,-500.0,0.00011159,2]
[353721458,1739998233314,-500.0,0.00011159,2]
[353721459,1739998233324,-501.86128834,0.00011159,2]
[353721460,1739998233333,-500.0,0.00011159,2]
[353721461,1739998233342,-500.0,0.00011159,2]
[353721462,1739998233351,-500.0,0.00011159,2]
[353721463,1739998233362,-500.0,0.00011159,2]
[353721464,1739998233372,-500.0,0.00011159,2]
[353721465,1739998233382,-500.0,0.00011159,2]
[353721466,1739998233392,-500.0,0.00011159,2]
[353721467,1739998233402,-358.62883658,0.00011159,2]
[353721468,1739998233412,-500.0,0.00011159,2]
[353721469,1739998233422,-500.0,0.00011159,2]
[353721470,1739998233432,-500.0,0.00011159,2]
[353721471,1739998233443,-500.0,0.00011159,2]
[353721472,1739998233453,-500.0,0.00011159,2]
[353721473,1739998233463,-500.0,0.00011159,2]
[353721474,1739998233472,-381.67163578,0.00011159,2]
[353721475,1739998233482,-553.83,0.00011159,2]
[353721476,1739998233492,-595.70862409,0.00011159,2]
[353721477,1739998233501,-500.0,0.00011159,2]
[353721478,1739998233511,-500.0,0.00011159,2]
[353721479,1739998233521,-500.0,0.00011159,2]
[353721480,1739998233532,-428.1791229,0.00011159,2]
[353721481,1739998233542,-500.0,0.00011159,2]
[353721482,1739998233552,-411.92028388,0.00011159,2]
[353721483,1739998233562,-500.0,0.00011159,2]
[353721484,1739998233572,-500.0,0.00011159,2]
[353721485,1739998233581,-500.0,0.00011159,2]
[353721486,1739998233591,-500.0,0.00011159,2]
[353721487,1739998233601,-501.33360632,0.00011159,2]
[353721488,1739998233611,-500.0,0.00011159,2]
[353721489,1739998233621,-500.0,0.00011159,2]
[353721490,1739998233631,-500.0,0.00011159,2]
[353721491,1739998233641,-500.0,0.00011159,2]
[353721492,1739998233651,-500.0,0.00011159,2]
[353721493,1739998233661,-500.0,0.00011159,2]
[353721494,1739998233670,-500.0,0.00011159,2]
[353721495,1739998233683,-500.0,0.00011159,2]
[353721496,1739998233693,-500.0,0.00011159,2]
[353721497,1739998233703,-500.0,0.00011159,2]
[353721498,1739998233713,-500.00002167,0.00011159,2]
[353721499,1739998233723,-500.0,0.00011159,2]
[353721500,1739998233733,-500.0,0.00011159,2]
[353721501,1739998233743,-500.0,0.00011159,2]
[353721502,1739998233753,-500.0,0.00011159,2]
[353721503,1739998233763,-500.0,0.00011159,2]
[353721504,1739998233772,-500.0,0.00011159,2]
[353721505,1739998233782,-500.0,0.00011159,2]
[353721506,1739998233792,-500.0,0.00011159,2]
[353721507,1739998233802,-500.0,0.00011159,2]
[353721508,1739998233811,-544.37,0.00011159,2]
[353721509,1739998233822,-500.0,0.00011159,2]
[353721510,1739998233831,-501.27597749,0.00011159,2]
[353721511,1739998233841,-500.0,0.00011159,2]
[353721512,1739998233851,-500.0,0.00011159,2]
[353721513,1739998233861,-500.0,0.00011159,2]
[353721514,1739998233872,-500.0,0.00011159,2]
[353721515,1739998233883,-500.0,0.00011159,2]
[353721516,1739998233893,-500.0,0.00011159,2]
[353721517,1739998233903,-500.0,0.00011159,2]
[353721518,1739998233914,-500.0,0.00011159,2]
[353721519,1739998233926,-500.0,0.00011159,2]
[353721520,1739998233936,-500.0,0.00011159,2]
[353721521,1739998234152,-500.0,0.00011159,2]
[353721522,1739998234162,-500.0,0.00011159,2]
[353721523,1739998234173,-500.0,0.00011159,2]
[353721524,1739998234183,-500.0,0.00011159,2]
[353721525,1739998234193,-500.0,0.00011159,2]
[353721526,1739998234204,-500.0,0.00011159,2]
[353721527,1739998234214,-500.0,0.00011159,2]
[353721528,1739998234224,-500.93784646,0.00011159,2]
[353721529,1739998234233,-500.0,0.00011159,2]
[353721530,1739998234242,-500.58348483,0.00011159,2]
[353721531,1739998234252,-500.0,0.00011159,2]
[353721532,1739998234262,-500.0,0.00011159,2]
[353721533,1739998234272,-514.73,0.00011159,2]
[353721534,1739998234282,-500.0,0.00011159,2]
[353721535,1739998234291,-500.0,0.00011159,2]
[353721536,1739998234301,-500.0,0.00011159,2]
[353721537,1739998234311,-500.0,0.00011159,2]
[353721538,1739998234320,-500.0,0.00011159,2]
[353721539,1739998234330,-501.66708305,0.00011159,2]
[353721540,1739998234339,-432.0,0.00011159,2]
[353721541,1739998234349,-500.0,0.00011159,2]
[353721542,1739998234359,-500.0,0.00011159,2]
[353721543,1739998234368,-500.0,0.00011159,2]
[353721544,1739998234378,-497.42170741,0.00011159,2]
[353721545,1739998234388,-500.0,0.00011159,2]
[353721546,1739998234398,-500.0,0.00011159,2]
[353721547,1739998234408,-500.0,0.00011159,2]
[353721548,1739998234418,-500.0,0.00011159,2]
[353721549,1739998234429,-501.99975067,0.00011159,2]
[353721550,1739998234439,-500.0,0.00011159,2]
[353721551,1739998234448,-351.97485427,0.00011159,2]
[353721552,1739998234458,-500.0,0.00011159,2]
[353721553,1739998234467,-500.0,0.00011159,2]
[353721554,1739998234479,-500.0,0.00011159,2]
[353721555,1739998234488,-501.0,0.00011159,2]
[353721556,1739998234498,-500.0,0.00011159,2]
[353721557,1739998234507,-500.0,0.00011159,2]
[353721558,1739998234517,-500.0,0.00011159,2]
[353721559,1739998234527,-500.0,0.00011159,2]
[353721560,1739998234536,-500.0,0.00011159,2]
[353721561,1739998234546,-500.0,0.00011159,2]
[353721562,1739998234556,-500.0,0.00011159,2]
[353721563,1739998234566,-500.0,0.00011159,2]
[353721564,1739998234575,-715.858616,0.00011159,2]
[353721565,1739998234585,-500.0,0.00011159,2]
[353721566,1739998234595,-500.0,0.00011159,2]
[353721567,1739998234604,-500.0,0.00011159,2]
[353721568,1739998234615,-500.0,0.00011159,2]
[353721569,1739998234627,-500.0,0.00011159,2]
[353721570,1739998234639,-500.0,0.00011159,2]
[353721571,1739998234650,-505.26751141,0.00011159,2]
[353721572,1739998234661,-500.0,0.00011159,2]
[353721573,1739998234671,-500.0,0.00011159,2]
[353721574,1739998234685,-500.0,0.00011159,2]
[353721575,1739998234695,-500.0,0.00011159,2]
[353721576,1739998234706,-500.0,0.00011159,2]
[353721577,1739998234717,-500.0,0.00011159,2]
[353721578,1739998234728,-500.0,0.00011159,2]
[353721579,1739998234738,-156.649256,0.00011159,2]
[353721580,1739998234749,-500.0,0.00011159,2]
[353721581,1739998234759,-500.0,0.00011159,2]
[353721582,1739998234770,-500.0,0.00011159,2]
[353721583,1739998234781,-500.0,0.00011159,2]
[353721584,1739998234791,-500.0,0.00011159,2]
[353721585,1739998234802,-500.0,0.00011159,2]
[353721586,1739998234812,-500.0,0.00011159,2]
[353721587,1739998234822,-500.0,0.00011159,2]
[353721588,1739998234832,-500.0,0.00011159,2]
[353721589,1739998234841,-500.0,0.00011159,2]
[353721590,1739998234851,-500.0,0.00011159,2]
[353721591,1739998234860,-500.0,0.00011159,2]
[353721592,1739998234872,-500.0,0.00011159,2]
[353721593,1739998234881,-500.0,0.00011159,2]
[353721594,1739998234891,-500.0,0.00011159,2]